Cogmind - Beta 17 *** ADVENTURER MODE // 2026.07.06 @ 08:29:05 Player: Jefffff Result: Destroyed by SG-QKP(R) with Subdweller Beam Cannon Performance ------------- Evolutions (0) 0 Regions Visited (2) 400 Robots Destroyed (6) 30 Value Destroyed (175) 175 Prototype IDs (0) 0 Alien Tech Used (0) 0 Bonus (0) 0 TOTAL SCORE: 605 Bonus ------- None Cogmind --------- Core Integrity 0/250 Matter 233/300 Energy 31/100 System Corruption 0% Temperature Cool (9) Movement Core (250) Ox4 Location -10/Subcaves Parts ------- > --- POWER (1) -------- (None) > --- PROPULSION (2) --- (None) > --- UTILITY (2) ------ Improved Heat Sink Small Storage Unit > --- WEAPON (2) ------- Autobeam Battle Rifle > --- INVENTORY (8) ---- Scrap Shield Salvaging Laser Light Assault Rifle Peak State ------------ > --- POWER ------------ Light Ion Engine > --- PROPULSION ------- Aluminum Leg Aluminum Leg > --- UTILITY ---------- Improved Heat Sink Small Storage Unit > --- WEAPON ----------- Assault Rifle Light Assault Rifle > --- INVENTORY -------- Scrap Shield Riot Gun Salvaging Laser Autobeam Light Assault Rifle [Rating: 10] Favorites ----------- Power Light Ion Engine Engine Light Ion Engine Propulsion Aluminum Leg Leg Aluminum Leg Utility Small Storage Unit Device Improved Heat Sink Storage Small Storage Unit Weapon Light Assault Rifle Energy Gun Autobeam Ballistic Gun Light Assault Rifle Build | -11 -10 -10 ------- Run | Yrd Mat Sub Slots Evolved . | . . . Power . | . . . Propulsion . | . . . Utility . | . . . Weapon . | . . . Parts Attached 11 | 6 . 5 Power 2 | 1 . 1 Engine 2 | 1 . 1 Core . | . . . Reactor . | . . . Propulsion 2 | 2 . . Treads . | . . . Leg 2 | 2 . . Wheel . | . . . Hover . | . . . Flight . | . . . Utility 2 | 1 . 1 Device 1 | . . 1 Storage 1 | 1 . . Processor . | . . . Hackware . | . . . Protection . | . . . Artifact . | . . . Weapon 5 | 2 . 3 Energy Gun 2 | . . 2 Energy Cannon . | . . . Ballistic Gun 3 | 2 . 1 Ballistic Cannon . | . . . Launcher . | . . . Special Weapon . | . . . Impact Weapon . | . . . Slashing Weapon . | . . . Piercing Weapon . | . . . Special Melee Weapon . | . . . Unidentified Prototypes . | . . . Parts Lost 7 | . . 7 Power 2 | . . 2 Propulsion 2 | . . 2 Utility . | . . . Weapon 3 | . . 3 Highest Loss Streak 6 | . . 6 To Critical Strikes . | . . . Average Backups 4 | 1 1 4 Power . | . . . Propulsion . | . . . Utility . | . . . Weapon 2 | . 1 3 Tool/Special . | . . . Unused Backups 3 | . . 3 Power . | . . . Propulsion . | . . . Utility 1 | . . 1 Weapon 2 | . . 2 Tool/Special . | . . . Average Slot Usage (%) 84 | . 85 83 Engine 11 | . 14 10 Leg 27 | . 28 26 Device 2 | . . 3 Storage 14 | . 14 14 Ballistic Gun 27 | . 28 27 Peak Build Rating 10 | 6 6 10 Average Rating 6 | 3 6 6 On Entrance 4 | . 6 6 Avg Prop Armor Cover (%) . | . . . Naked Turns . | . . . Heaviest Build 12 | 11 11 12 Greatest Support 20 | 20 20 20 Greatest Overweight (x) . | . . . Average Overweight (x) . | . . . Largest Inventory Capacity 8 | 8 8 8 Average Capacity 7 | 6 8 8 Most Carried 8 | 3 2 8 Average Carried 4 | 1 1 5 Final Capacity 8 | 8 8 8 Final Carried 4 | 1 2 4 Class Distribution -------------------- 100% | Mutant Dominant Class ---------------- Mutant | -10/Materials Mutant | -10/Subcaves Resources | -11 -10 -10 ----------- Run | Yrd Mat Sub Matter Collected 343 | . 26 317 Remotely . | . . . Salvage Created 219 | . . 219 Parts 14 | . . 14 Haulers Intercepted . | . . . Recyclers Shooed . | . . . Parts Field Recycled . | . . . Retrieved Matter . | . . . Parts Self-Destructed 12 | . . 12 Prevented . | . . . Parts Restored . | . . . Kills | -11 -10 -10 ------- Run | Yrd Mat Sub Combat Hostiles Destroyed 5 | . . 5 Guns 5 | . . 5 Classes Destroyed 4 | . . 4 Turret 1 | . . 1 Swarmer 2 | . . 2 Sentry 1 | . . 1 Subdweller 2 | . . 2 Best Kill Streak 2 | . . 2 Combat Bots Only 1 | . . 1 Max Kills in Single Turn 1 | . . 1 Gunslinging . | . . . Exploded . | . . . Melee . | . . . Uniques/NPCs Destroyed . | . . . Combat | -11 -10 -10 -------- Run | Yrd Mat Sub Hostile Shots Fired 103 | . . 103 Missed 28 | . . 28 Hits 75 | . . 75 Projectile 75 | . . 75 Damage Taken 891 | . . 891 Core 254 | . . 254 Absorbed by Shields . | . . . Ignored by Resistances 259 | . . 259 Core Remaining (%) 100 | 100 . . Volleys Fired 36 | . . 36 Largest 2 | . . 2 Hottest 50 | . . 50 Shots Fired 67 | . . 67 Gun 67 | . . 67 Cannon . | . . . Launcher . | . . . Special . | . . . Kinetic 65 | . . 65 Thermal 1 | . . 1 Explosive . | . . . Electromagnetic 1 | . . 1 Robot Hit Streak 29 | . . 29 Robot Miss Streak 2 | . . 2 Penetration Max . | . . . Secondary Targets . | . . . Autonomous 4 | . . 4 Shots Hit Robots 56 | . . 56 Core Hits 16 | . . 16 Critical Kills . | . . . Critical Parts Destroyed . | . . . Critical Strikes 1 | . . 1 Destroy 1 | . . 1 Melee Attacks . | . . . Impact . | . . . Slashing . | . . . Piercing . | . . . Sneak Attacks . | . . . Combat Hostiles . | . . . Follow-up Attacks . | . . . Damage Inflicted 613 | . . 613 Guns 613 | . . 613 Cannons . | . . . Explosions . | . . . Melee . | . . . Ramming . | . . . Kinetic 572 | . . 572 Thermal 21 | . . 21 Explosive . | . . . Electromagnetic 20 | . . 20 Impact . | . . . Slashing . | . . . Piercing . | . . . Highest Corruption . | . . . Average Corruption . | . . . Corruption Purged . | . . . Corruption Blocked . | . . . Overload Shots . | . . . Overflow Damage . | . . . Projectiles . | . . . Explosions . | . . . Melee . | . . . Knockbacks . | . . . Impact . | . . . Kinetic . | . . . Secondary . | . . . Self-Inflicted Damage . | . . . Shots . | . . . Rammed . | . . . Targets Rammed . | . . . Kicked . | . . . Crushed . | . . . Highest Temperature 21 | . . 21 Average Temperature 8 | . . 8 Received Heat Transfer 342 | . . 342 Siege Activations . | . . . Martial Activations . | . . . Shielding Activations . | . . . Robots Disrupted . | . . . Combat Hostiles . | . . . Robots Corrupted . | . . . Combat Hostiles . | . . . Parts Fried . | . . . Impact Corruptions . | . . . Robots Melted . | . . . Combat Hostiles . | . . . Parts Melted . | . . . Heat Transferred 75 | . . 75 Parts Sabotaged . | . . . Parts Stolen . | . . . Parts Stripped . | . . . Power Chain Reactions . | . . . Alert | -11 -10 -10 ------- Run | Yrd Mat Sub Maximum Alert Level . | . . . Low Security (%) 100 | 100 100 . Level 1 . | . . . Level 2 . | . . . Level 3 . | . . . Level 4 . | . . . Level 5 . | . . . High Security . | . . . Max Security . | . . . Peak Influence . | . . . Initial . | . . . Average . | . . . Influence Increases 110 | . . 110 Destroy 0b10 Robot/C 80 | . . 80 Lose Combat Pursuer 30 | . . 30 Influence Decreases 110 | . . 110 Time Decay 110 | . . 110 Squads Dispatched . | . . . Investigation . | . . . Extermination . | . . . Reinforcement . | . . . Assault . | . . . Garrison . | . . . Intercept . | . . . Searches Triggered . | . . . Construction Impeded . | . . . Haulers Reinforced . | . . . Active Scanning Responses . | . . . Cargo Convoy Interrupts . | . . . Stealth | -11 -10 -10 --------- Run | Yrd Mat Sub Distress Signals 1 | . 1 . Communications Jammed . | . . . Distress Signals . | . . . Times Spotted 12 | . . 12 Peak Tracking Total 5 | . . 5 Tactical Retreats 1 | . . 1 Traps | -11 -10 -10 ------- Run | Yrd Mat Sub Traps Triggered . | . . . Indirectly . | . . . Trap Hack Attempts . | . . . Triggered . | . . . Disarmed . | . . . Reprogrammed . | . . . Reused . | . . . Traps Extracted . | . . . Installed . | . . . Triggered . | . . . Machines | -11 -10 -10 ---------- Run | Yrd Mat Sub Machines Disabled . | . . . Max in Single Turn . | . . . Machines Repaired . | . . . Machines Dismantled . | . . . Machines Sabotaged . | . . . Overloaded Fab Kills . | . . . Hacking | -11 -10 -10 --------- Run | Yrd Mat Sub Machines Accessed 1 | . . 1 Terminals . | . . . Fabricators . | . . . Repair Stations . | . . . Recycling Units . | . . . Scanalyzers . | . . . Garrison Access . | . . . Total Hacks 4 | . . 4 Successful 4 | . . 4 Failed . | . . . Catastrophic . | . . . Database Lockouts . | . . . Manual . | . . . Terminals . | . . . Fabricators . | . . . Repair Stations . | . . . Recycling Units . | . . . Scanalyzers . | . . . Garrison Access . | . . . Terminal Hacks 4 | . . 4 Record 4 | . . 4 Fabricator Hacks . | . . . Repair Station Hacks . | . . . Recycling Unit Hacks . | . . . Scanalyzer . | . . . Garrison Access Hacks . | . . . Unauthorized Hacks . | . . . Terminals . | . . . Fabricators . | . . . Repair Stations . | . . . Recycling Units . | . . . Scanalyzers . | . . . Garrison Access . | . . . Data Cores Recovered . | . . . Used . | . . . Hacking Detections . | . . . Full Trace Events . | . . . Feedback Events . | . . . Feedback Blocked . | . . . Robot Schematics Acquired . | . . . Robots Built . | . . . Authchips . | . . . Time . | . . . Total Robot Build Rating . | . . . Part Schematics Acquired . | . . . Parts Built . | . . . Authchips . | . . . Time . | . . . Total Part Build Rating . | . . . Part Studies Acquired . | . . . Parts Repaired . | . . . Time . | . . . Parts Recycled . | . . . Recycled Matter . | . . . Retrieved Matter . | . . . Retrieved Components . | . . . Parts Scanalyzed . | . . . Part Schematics Acquired . | . . . Parts Damaged . | . . . Bothacking | -11 -10 -10 ------------ Run | Yrd Mat Sub Used RIF Installer . | . . . Robots Hacked . | . . . Non-combat . | . . . Combat . | . . . Robot Hacks Applied . | . . . Relay Couplers Released . | . . . Fabnet Peak Effective % . | . . . Robots Rewired . | . . . Allies Hacked . | . . . Hacks Repelled . | . . . Allies | -11 -10 -10 -------- Run | Yrd Mat Sub Total Allies . | . . . Largest Group . | . . . Highest-Rated Group . | . . . Highest-Rated Ally . | . . . Total Orders . | . . . Ally Attacks . | . . . Total Damage . | . . . Kills . | . . . Allies Corrupted . | . . . Allies Melted . | . . . Intel | -11 -10 -10 ------- Run | Yrd Mat Sub Active Infowar (turns) . | . . . Robot Analysis Total . | . . . Derelict Logs Recovered . | . . . Drone Launches . | . . . Drone Recoveries . | . . . Exploration | -11 -10 -10 ------------- Run | Yrd Mat Sub Turns Passed 1000 | 44 137 819 Spaces Moved 702 | 32 104 566 Core 7 | 7 . . Treads . | . . . Legs 695 | 25 104 566 Wheels . | . . . Hover . | . . . Flight . | . . . Fastest Speed 50 | 50 120 120 Average Speed 119 | 104 120 120 Slowest Speed 120 | 120 120 120 Overloaded Moves . | . . . Propulsion Burnouts . | . . . Robots Hopped . | . . . Potential Cave-ins . | . . . Cave-ins Triggered . | . . . Exploration Rate (%) 21 | 4 20 39 Regions Visited 2 Branch Regions 1 Pre-discovered Areas . | . . . Known Exits Taken . | . . . Unknown Exits Taken 2 | 1 1 . Scrap Searched 4 | . . 4 Spaces Dug . | . . . Terrain Destroyed . | . . . Melee . | . . . Projectile . | . . . AOE . | . . . Terrain Rammed . | . . . Walls Destroyed . | . . . Machines Disabled . | . . . Actions | -11 -10 -10 --------- Run | Yrd Mat Sub Total 802 | 40 116 646 Wait 45 | . 12 33 Move 700 | 31 103 566 Hop . | . . . Pick Up 10 | 3 1 6 Fast Attach 4 | 4 . . Attach 7 | 2 . 5 Detach . | . . . Swap . | . . . Drop . | . . . Fire 36 | . . 36 Melee . | . . . Ram . | . . . Kick . | . . . Crush . | . . . Escape Stasis . | . . . Rewire . | . . . Trap . | . . . Miscellaneous . | . . . Route ------- -11/Scrapyard -10/Materials (discovered 2 exits: [*Min] / *Sub) -10/Subcaves (discovered 2 exits: [*Rec] / [*Scr]) History --------- Turn | Location | Event 2 | -11/Scrapyard | Met Revision 17 3 | -11/Scrapyard | Discovered new exit (range 15) 45 | -11/Scrapyard | Entered Materials 46 | -10/Materials | Met a group of wandering Federalists 57 | -10/Materials | Discovered new exit (range 16) 176 | -10/Materials | Discovered new exit (range 6) 182 | -10/Materials | Entered Subcaves 183 | -10/Subcaves | Continued accompanying wandering Federalists (6) 183 | -10/Subcaves | Approached by a straggling Scientist 206 | -10/Subcaves | Discovered new exit (range 15) 313 | -10/Subcaves | Build established: Mutant 366 | -10/Subcaves | Visited Clippyterm 370 | -10/Subcaves | Learned Research security intel 370 | -10/Subcaves | Learned Factory stockpile data 445 | -10/Subcaves | Wandering Federalist uncovered a shortcut to Scraptown 984 | -10/Subcaves | Core integrity fell below 50% 997 | -10/Subcaves | Core integrity fell below 20% 1001 | -10/Subcaves | Destroyed by SG-QKP(R) with Subdweller Beam Cannon Last Messages --------------- here" 00908_ Searching scrap... 00908_ Found Sub. Beam Cannon. 00908_ Found Battle Rifle. 00908_ Found 53 Matter. 00909_ Acquired 53 matter. 00910_ Acquired Battle Rifle. 9R-W1E(c): "I think it's somewhere northeast of here" 00968_ Aluminum Leg destroyed. 00976_ Lgt. Ion Engine destroyed. 00978_ 2A-WD9(R) suffers critical hit (Destroy). 00986_ Lgt. Assault Rifle destroyed. 00988_ Assault Rifle destroyed. 00992_ Riot Gun destroyed. 00997_ Destroyed Scrap Shield. 9R-W1E(c): "I think it's somewhere north of here" 00999_ 2A-WD9(R) destroyed. [Achievement: I Was Wrong!] Map ----- +----------------------------------------------------+ | ??????## ## ###### "#?????????????????? | | ??????# ## ####??# "#?????????????????? | | ??????# ## ## # ##" """#?????????????????? | | ??????# ########?????????????????? | | ?????## #????????????????????????? | | ###### ##### #???????????????????????? | | ##?????## #??????????????????????? | | ##?????????? #?????????????????????? | | #????????????? ?????????????????????? | | #???????????????????????????????????? | | #???????????????????????????????????? | | #???????????????????????????????????? | | # #??????????????????????????????????? | | ## ##### #??????????????????????????????????? | | ?# ##??## #?????????????????#????????????????? | | ?# ####?# #???????????????? #????????????????? | | ?# ## #### ????????????" #????????????????? | | ## ?????????? #????????????????? | | ????????? #????????????????? | | #### ?###????? ####?????????????? | | ###????# ## ##??# ?????????????? | | #### ###?????# ### """"?????????????? | | ???## #??????# "" """" #???????????? | | ???## ##????##??# " " R " #???????????? | | ???# ##????## ???# " [%* #???????????????? | | #??## ##????# ???# @ ;## #???????????????? | | ### #????# ##?## ##????????????????????? | | ##?????# ##?## ##???????????????????? | | ### ######## ##?# #???????????????????? | | ### # # ### ##???????????????????? | | ##????????????????????? | | #?????????????????????? | | ### # #####c #?????????????????????? | | ## ##?##### #???## #?????????????????????? | | ?## ## #?# #????#####?????????????????????? | | ??## #?## ##??????????????????????????????? | | ???# ##??####???????????????????????????????? | | ?### #??????????????????????????????????????? | | ?# #??????????????????????????????????????? | | ## ####??????????????????????????????????????? | | # # #?????????????????????????????????????????? | | #" # ####??????????????????????????????????????? | | ## #??????????????????????????????????????? | | ### #??????????????????????????????????????? | | #?# #??????????????????????????????????????? | | " #?# ##??????????????????????????????????????? | | # ### #???????????????????????????????????????? | | # ## #???????????????????????????????????????? | | ## ## ##??????????????????????????????????????? | | ## #??????????????????????????????????????? | +----------------------------------------------------+ Best States ------------- Heat Dissipation 39 Energy Generation 10 Energy Capacity 125 Matter Stores 284 Matter Capacity 300 Sight Range 16 Terrain Scan Density 10 Resistance: KI 20 Resistance: TH 20 Resistance: EX 20 Resistance: EM 20 Resistance: I 20 Resistance: S 20 Resistance: P 20 Evasion (%) 55 Offensive Hacking 10 Item Schematics ----------------- None Robot Schematics ------------------ None Fabricated ------------ Nothing Repaired ---------- Nothing Studied --------- None Alien Tech Used ----------------- None Achievements -------------- I Was Wrong! Strength In Numbers Challenges ------------ None Game ------ Seed WeaponsNeutronBrace Manual? 0 Play Time 00:07:29 Cumulative 285.9 hours Start 2026.07.03 @ 00:32:00 End 2026.07.06 @ 08:29:05 Sessions 1 Manual Loads 0 Difficulty Adventurer Special Mode None Game No. 336 Rogue 0 Adventurer 336 Explorer 0 Win Type - Total 0 Types 0/0/0/0/0/0/0/0/0/0 Lore% 75 Gallery% 59 Achievement% 41 Wizard Run 0 Options --------- Layout 2 ASCII 0 Keyboard 0 Movement Mouse Keybinds 0 Fullscreen 2 Font 48/Smallcaps Map View 50x44 Zoom Use 0% Tactical HUD 1 Map Filters NONE Filters NONE Steam 1 RUN: 6a0ca2d0-2b7a-450b-8a76-347fa6e35ec5